[Event "Titled Tuesday Blitz October 11 Early 2022"]
[White "Moreno Perez, Tobias Sebastian"]
[Black "Aizpurua, Patrick Emilio"]
[WhiteFideId "186716"]
[BlackFideId "6600522"]
[WhiteElo "2487"]
[BlackElo "2378"]
[Result "0-1"]
[Round "05"]
[TimeControl "180+1"]
[Date "2022.10.12"]
[WhiteClock "0:00:03"]
[BlackClock "0:00:29"]

1. Nf3 {[%clk 0:03:00]}  Nf6 {[%clk 0:02:59]} 2. c4 {[%clk 0:03:00]}  e6 {[%clk 0:02:59]} 3. g3 {[%clk 0:03:00]}  d5 {[%clk 0:02:59]} 4. Bg2 {[%clk 0:03:00]}  Be7 {[%clk 0:02:59]} 5. O-O {[%clk 0:02:59]}  O-O {[%clk 0:03:00]} 6. d4 {[%clk 0:02:59]}  c6 {[%clk 0:03:00]} 7. Nbd2 {[%clk 0:02:59]}  Nbd7 {[%clk 0:03:00]} 8. Qc2 {[%clk 0:02:59]}  b6 {[%clk 0:03:00]} 9. e4 {[%clk 0:02:59]}  Ba6 {[%clk 0:02:57]} 10. Re1 {[%clk 0:02:53]}  Rc8 {[%clk 0:02:55]} 11. e5 {[%clk 0:02:50]}  Ne8 {[%clk 0:02:55]} 12. cxd5 {[%clk 0:02:36]}  cxd5 {[%clk 0:02:34]} 13. Qa4 {[%clk 0:02:36]}  Nc7 {[%clk 0:02:32]} 14. Nf1 {[%clk 0:02:30]}  b5 {[%clk 0:02:21]} 15. Qd1 {[%clk 0:02:28]}  b4 {[%clk 0:02:19]} 16. h4 {[%clk 0:02:25]}  Bb5 {[%clk 0:02:07]} 17. h5 {[%clk 0:02:19]}  a5 {[%clk 0:02:06]} 18. Ne3 {[%clk 0:02:14]}  a4 {[%clk 0:02:05]} 19. h6 {[%clk 0:02:12]}  g6 {[%clk 0:02:04]} 20. Ng4 {[%clk 0:02:13]}  Re8 {[%clk 0:01:56]} 21. Bf4 {[%clk 0:02:08]}  Na8 {[%clk 0:01:40]} 22. Qd2 {[%clk 0:02:00]}  b3 {[%clk 0:01:40]} 23. Bg5 {[%clk 0:01:58]}  Rc2 {[%clk 0:01:40]} 24. Qf4 {[%clk 0:01:57]}  Be2 {[%clk 0:01:27]} 25. Bxe7 {[%clk 0:01:21]}  Qxe7 {[%clk 0:01:23]} 26. axb3 {[%clk 0:01:08]}  axb3 {[%clk 0:01:18]} 27. Nf6+ {[%clk 0:01:05]}  Nxf6 {[%clk 0:01:15]} 28. exf6 {[%clk 0:01:06]}  Qc7 {[%clk 0:01:04]} 29. Ne5 {[%clk 0:00:56]}  Bb5 {[%clk 0:01:00]} 30. Qf3 {[%clk 0:00:09]}  Nb6 {[%clk 0:00:56]} 31. Qxb3 {[%clk 0:00:08]}  Be2 {[%clk 0:00:32]} 32. Qe3 {[%clk 0:00:02]}  Nc4 {[%clk 0:00:29]} 33. Rec1 {[%clk 0:00:03]}  Nxe3 {[%clk 0:00:29]} 0-1


[Site "https://www.chess.com"]

[Event "Titled Tuesday Blitz October 11 Early 2022"]
[White "Nozdrachev, Leonid"]
[Black "Hartikainen, Jarmo"]
[WhiteFideId "24113433"]
[BlackFideId "503134"]
[WhiteElo "2249"]
[BlackElo "2149"]
[Result "1-0"]
[Round "05"]
[TimeControl "180+1"]
[Date "2022.10.12"]
[WhiteClock "0:01:23"]
[BlackClock "0:00:05"]

1. e4 {[%clk 0:03:00]}  c5 {[%clk 0:02:59]} 2. Nf3 {[%clk 0:02:57]}  d6 {[%clk 0:02:59]} 3. d4 {[%clk 0:02:57]}  cxd4 {[%clk 0:02:59]} 4. Nxd4 {[%clk 0:02:58]}  Nf6 {[%clk 0:02:59]} 5. Nc3 {[%clk 0:02:58]}  Nc6 {[%clk 0:02:59]} 6. Nb3 {[%clk 0:02:59]}  e5 {[%clk 0:02:50]} 7. Bg5 {[%clk 0:02:58]}  Be7 {[%clk 0:02:45]} 8. Bc4 {[%clk 0:02:58]}  O-O {[%clk 0:02:38]} 9. Qe2 {[%clk 0:02:57]}  Be6 {[%clk 0:02:34]} 10. O-O-O {[%clk 0:02:57]}  Rc8 {[%clk 0:02:30]} 11. Bxf6 {[%clk 0:02:51]}  Bxf6 {[%clk 0:02:28]} 12. Nd5 {[%clk 0:02:47]}  Bxd5 {[%clk 0:02:08]} 13. Bxd5 {[%clk 0:02:48]}  Nb4 {[%clk 0:02:01]} 14. c3 {[%clk 0:02:38]}  a5 {[%clk 0:01:19]} 15. Kb1 {[%clk 0:02:36]}  Nxd5 {[%clk 0:01:14]} 16. Rxd5 {[%clk 0:02:37]}  a4 {[%clk 0:01:14]} 17. Na5 {[%clk 0:02:37]}  Qb6 {[%clk 0:00:53]} 18. Rhd1 {[%clk 0:02:31]}  Rc5 {[%clk 0:00:46]} 19. Nc4 {[%clk 0:02:28]}  Qb5 {[%clk 0:00:35]} 20. Rxc5 {[%clk 0:02:28]}  dxc5 {[%clk 0:00:35]} 21. Qd3 {[%clk 0:02:24]}  Qc6 {[%clk 0:00:25]} 22. Qd5 {[%clk 0:02:23]}  Qxd5 {[%clk 0:00:16]} 23. Rxd5 {[%clk 0:02:24]}  b5 {[%clk 0:00:16]} 24. Nxe5 {[%clk 0:02:20]}  Re8 {[%clk 0:00:15]} 25. f4 {[%clk 0:02:11]}  Bxe5 {[%clk 0:00:14]} 26. fxe5 {[%clk 0:02:12]}  Rc8 {[%clk 0:00:14]} 27. Kc2 {[%clk 0:02:09]}  Kf8 {[%clk 0:00:14]} 28. Rd7 {[%clk 0:02:08]}  Ke8 {[%clk 0:00:14]} 29. Rb7 {[%clk 0:02:07]}  b4 {[%clk 0:00:14]} 30. Kd3 {[%clk 0:02:06]}  a3 {[%clk 0:00:13]} 31. bxa3 {[%clk 0:02:06]}  bxa3 {[%clk 0:00:13]} 32. Kc4 {[%clk 0:02:06]}  Rd8 {[%clk 0:00:12]} 33. Ra7 {[%clk 0:02:05]}  Rd2 {[%clk 0:00:12]} 34. Rxa3 {[%clk 0:02:05]}  Rxg2 {[%clk 0:00:12]} 35. Kxc5 {[%clk 0:02:05]}  g5 {[%clk 0:00:12]} 36. Ra8+ {[%clk 0:01:57]}  Ke7 {[%clk 0:00:12]} 37. Ra6 {[%clk 0:01:51]}  g4 {[%clk 0:00:10]} 38. Rh6 {[%clk 0:01:50]}  Rxa2 {[%clk 0:00:09]} 39. Rxh7 {[%clk 0:01:49]}  Rc2 {[%clk 0:00:08]} 40. Kd4 {[%clk 0:01:49]}  Rd2+ {[%clk 0:00:08]} 41. Ke3 {[%clk 0:01:49]}  Rd1 {[%clk 0:00:08]} 42. Kf4 {[%clk 0:01:47]}  Rc1 {[%clk 0:00:07]} 43. Kxg4 {[%clk 0:01:47]}  Rxc3 {[%clk 0:00:08]} 44. h4 {[%clk 0:01:47]}  Rc2 {[%clk 0:00:08]} 45. Rh6 {[%clk 0:01:43]}  Kf8 {[%clk 0:00:08]} 46. e6 {[%clk 0:01:41]}  fxe6 {[%clk 0:00:08]} 47. Rxe6 {[%clk 0:01:42]}  Rc4 {[%clk 0:00:08]} 48. Re5 {[%clk 0:01:41]}  Rb4 {[%clk 0:00:08]} 49. Kf4 {[%clk 0:01:41]}  Ra4 {[%clk 0:00:08]} 50. h5 {[%clk 0:01:36]}  Kf7 {[%clk 0:00:09]} 51. Rg5 {[%clk 0:01:35]}  Ra1 {[%clk 0:00:08]} 52. Rg3 {[%clk 0:01:34]}  Rh1 {[%clk 0:00:08]} 53. Kg5 {[%clk 0:01:27]}  Ke6 {[%clk 0:00:07]} 54. Kg6 {[%clk 0:01:25]}  Rh4 {[%clk 0:00:05]} 55. h6 {[%clk 0:01:25]}  Rxe4 {[%clk 0:00:05]} 56. h7 {[%clk 0:01:25]}  Rh4 {[%clk 0:00:05]} 57. Kg7 {[%clk 0:01:24]}  Ke7 {[%clk 0:00:05]} 58. h8=Q {[%clk 0:01:23]} 1-0


[Site "https://www.chess.com"]

[Event "Titled Tuesday Blitz October 11 Early 2022"]
[White "Omariev, Maksim"]
[Black "Barria Zuniga, Daniel"]
[WhiteFideId "4193423"]
[BlackFideId "3400816"]
[WhiteElo "2435"]
[BlackElo "2414"]
[Result "0-1"]
[Round "05"]
[TimeControl "180+1"]
[Date "2022.10.12"]
[WhiteClock "0:00:03"]
[BlackClock "0:00:29"]

1. e4 {[%clk 0:03:00]}  c5 {[%clk 0:02:45]} 2. Nf3 {[%clk 0:03:00]}  Nc6 {[%clk 0:02:43]} 3. d4 {[%clk 0:02:56]}  cxd4 {[%clk 0:02:43]} 4. Nxd4 {[%clk 0:02:56]}  Nf6 {[%clk 0:02:43]} 5. Nc3 {[%clk 0:02:56]}  e6 {[%clk 0:02:43]} 6. Ndb5 {[%clk 0:02:55]}  a6 {[%clk 0:02:42]} 7. Nd6+ {[%clk 0:02:55]}  Bxd6 {[%clk 0:02:43]} 8. Qxd6 {[%clk 0:02:56]}  b5 {[%clk 0:02:44]} 9. e5 {[%clk 0:02:22]}  Ng4 {[%clk 0:02:42]} 10. Bf4 {[%clk 0:02:14]}  Qa5 {[%clk 0:02:41]} 11. Be2 {[%clk 0:01:58]}  b4 {[%clk 0:02:27]} 12. Bxg4 {[%clk 0:01:38]}  bxc3 {[%clk 0:02:26]} 13. O-O {[%clk 0:01:06]}  cxb2 {[%clk 0:02:01]} 14. Rab1 {[%clk 0:00:59]}  Rb8 {[%clk 0:01:45]} 15. Rfd1 {[%clk 0:00:46]}  Qb4 {[%clk 0:01:36]} 16. Bf3 {[%clk 0:00:34]}  Qxd6 {[%clk 0:01:20]} 17. Rxd6 {[%clk 0:00:35]}  Ke7 {[%clk 0:01:12]} 18. Bxc6 {[%clk 0:00:30]}  dxc6 {[%clk 0:01:11]} 19. Be3 {[%clk 0:00:28]}  Rb5 {[%clk 0:01:06]} 20. f4 {[%clk 0:00:23]}  f6 {[%clk 0:00:55]} 21. c4 {[%clk 0:00:22]}  Rb7 {[%clk 0:00:50]} 22. Bc5 {[%clk 0:00:20]}  Kf7 {[%clk 0:00:49]} 23. Rxc6 {[%clk 0:00:17]}  Bd7 {[%clk 0:00:45]} 24. Rb6 {[%clk 0:00:16]}  Rc7 {[%clk 0:00:45]} 25. Be3 {[%clk 0:00:07]}  Rxc4 {[%clk 0:00:44]} 26. R1xb2 {[%clk 0:00:08]}  Bb5 {[%clk 0:00:43]} 27. exf6 {[%clk 0:00:04]}  gxf6 {[%clk 0:00:42]} 28. Rb7+ {[%clk 0:00:03]}  Kg6 {[%clk 0:00:42]} 29. Kf2 {[%clk 0:00:04]}  Rhc8 {[%clk 0:00:42]} 30. Rd2 {[%clk 0:00:04]}  Rc2 {[%clk 0:00:41]} 31. Kg3 {[%clk 0:00:02]}  Rxd2 {[%clk 0:00:40]} 32. Bxd2 {[%clk 0:00:03]}  Rc2 {[%clk 0:00:39]} 33. Bb4 {[%clk 0:00:03]}  Rxa2 {[%clk 0:00:35]} 34. Bf8 {[%clk 0:00:03]}  Bc6 {[%clk 0:00:34]} 35. Rg7+ {[%clk 0:00:04]}  Kf5 {[%clk 0:00:34]} 36. Kh3 {[%clk 0:00:04]}  h5 {[%clk 0:00:34]} 37. g3 {[%clk 0:00:04]}  a5 {[%clk 0:00:30]} 38. Rh7 {[%clk 0:00:04]}  Bf3 {[%clk 0:00:30]} 39. Ra7 {[%clk 0:00:03]}  Bg4+ {[%clk 0:00:29]} 0-1


[Site "https://www.chess.com"]

[Event "Titled Tuesday Blitz October 11 Early 2022"]
[White "Ozen, Bahadir"]
[Black "Aarav Dengla"]
[WhiteFideId "6337058"]
[BlackFideId "45059756"]
[WhiteElo "2722"]
[BlackElo "2249"]
[Result "1-0"]
[Round "05"]
[TimeControl "180+1"]
[Date "2022.10.12"]
[WhiteClock "0:00:16"]
[BlackClock "0:00:13"]

1. g3 {[%clk 0:03:00]}  d5 {[%clk 0:02:58]} 2. Nf3 {[%clk 0:03:00]}  g6 {[%clk 0:02:52]} 3. Bg2 {[%clk 0:03:00]}  Bg7 {[%clk 0:02:51]} 4. O-O {[%clk 0:03:01]}  c6 {[%clk 0:02:50]} 5. d3 {[%clk 0:03:01]}  e5 {[%clk 0:02:48]} 6. Nbd2 {[%clk 0:03:01]}  Ne7 {[%clk 0:02:47]} 7. c3 {[%clk 0:03:01]}  O-O {[%clk 0:02:46]} 8. e4 {[%clk 0:03:00]}  dxe4 {[%clk 0:02:46]} 9. dxe4 {[%clk 0:03:00]}  Be6 {[%clk 0:02:46]} 10. Ng5 {[%clk 0:02:59]}  Bd7 {[%clk 0:02:42]} 11. Re1 {[%clk 0:02:51]}  h6 {[%clk 0:02:40]} 12. Ngf3 {[%clk 0:02:52]}  Be6 {[%clk 0:02:39]} 13. Qc2 {[%clk 0:02:48]}  Qd6 {[%clk 0:02:28]} 14. b4 {[%clk 0:02:47]}  Rd8 {[%clk 0:02:27]} 15. Bb2 {[%clk 0:02:45]}  a5 {[%clk 0:02:27]} 16. a3 {[%clk 0:02:45]}  axb4 {[%clk 0:02:21]} 17. cxb4 {[%clk 0:02:45]}  Na6 {[%clk 0:02:18]} 18. Nc4 {[%clk 0:02:43]}  Bxc4 {[%clk 0:02:18]} 19. Qxc4 {[%clk 0:02:43]}  Nc7 {[%clk 0:02:12]} 20. Qb3 {[%clk 0:02:30]}  Nb5 {[%clk 0:01:45]} 21. Rad1 {[%clk 0:02:30]}  Qc7 {[%clk 0:01:44]} 22. h4 {[%clk 0:02:27]}  Bf6 {[%clk 0:01:34]} 23. h5 {[%clk 0:02:27]}  Kg7 {[%clk 0:01:28]} 24. hxg6 {[%clk 0:02:26]}  Nxg6 {[%clk 0:01:29]} 25. Bf1 {[%clk 0:01:47]}  Rxd1 {[%clk 0:01:13]} 26. Rxd1 {[%clk 0:01:47]}  Nd6 {[%clk 0:01:13]} 27. Qe3 {[%clk 0:01:40]}  Kh7 {[%clk 0:00:52]} 28. Bc1 {[%clk 0:01:39]}  Bg7 {[%clk 0:00:52]} 29. Kg2 {[%clk 0:01:31]}  Rd8 {[%clk 0:00:45]} 30. Be2 {[%clk 0:01:30]}  f6 {[%clk 0:00:42]} 31. Rh1 {[%clk 0:01:30]}  Nf7 {[%clk 0:00:42]} 32. Bc4 {[%clk 0:01:29]}  Qe7 {[%clk 0:00:28]} 33. Ba2 {[%clk 0:01:24]}  b5 {[%clk 0:00:27]} 34. Bb3 {[%clk 0:01:18]}  Ra8 {[%clk 0:00:26]} 35. Nh2 {[%clk 0:01:14]}  Qd7 {[%clk 0:00:21]} 36. Qe2 {[%clk 0:01:12]}  Ne7 {[%clk 0:00:20]} 37. Ng4 {[%clk 0:01:11]}  Ng8 {[%clk 0:00:20]} 38. Rd1 {[%clk 0:01:05]}  Qe7 {[%clk 0:00:19]} 39. Qf3 {[%clk 0:01:05]}  Rd8 {[%clk 0:00:17]} 40. Qf5+ {[%clk 0:01:04]}  Kh8 {[%clk 0:00:15]} 41. Rh1 {[%clk 0:01:01]}  Ng5 {[%clk 0:00:14]} 42. Bxg5 {[%clk 0:01:00]}  fxg5 {[%clk 0:00:15]} 43. Bxg8 {[%clk 0:00:59]}  Kxg8 {[%clk 0:00:16]} 44. Nxh6+ {[%clk 0:00:59]}  Bxh6 {[%clk 0:00:16]} 45. Rxh6 {[%clk 0:01:00]}  Rd6 {[%clk 0:00:17]} 46. Rxd6 {[%clk 0:00:54]}  Qxd6 {[%clk 0:00:18]} 47. Qxg5+ {[%clk 0:00:55]}  Kf7 {[%clk 0:00:18]} 48. Qh5+ {[%clk 0:00:55]}  Kg7 {[%clk 0:00:18]} 49. Qg4+ {[%clk 0:00:54]}  Kf7 {[%clk 0:00:17]} 50. Qe2 {[%clk 0:00:53]}  Qd4 {[%clk 0:00:16]} 51. Qc2 {[%clk 0:00:52]}  Qd6 {[%clk 0:00:14]} 52. Qc3 {[%clk 0:00:51]}  Qe6 {[%clk 0:00:14]} 53. Kf3 {[%clk 0:00:42]}  Qf6+ {[%clk 0:00:14]} 54. Ke2 {[%clk 0:00:42]}  Qe6 {[%clk 0:00:13]} 55. f3 {[%clk 0:00:30]}  Qa2+ {[%clk 0:00:12]} 56. Kf1 {[%clk 0:00:31]}  Qb1+ {[%clk 0:00:09]} 57. Kg2 {[%clk 0:00:31]}  Qa2+ {[%clk 0:00:09]} 58. Kh3 {[%clk 0:00:31]}  Qe6+ {[%clk 0:00:09]} 59. g4 {[%clk 0:00:28]}  Qh6+ {[%clk 0:00:10]} 60. Kg2 {[%clk 0:00:29]}  Qe6 {[%clk 0:00:10]} 61. Kg3 {[%clk 0:00:28]}  Qf6 {[%clk 0:00:10]} 62. Qd2 {[%clk 0:00:27]}  Qe6 {[%clk 0:00:09]} 63. Qg5 {[%clk 0:00:25]}  Qd6 {[%clk 0:00:08]} 64. Qf5+ {[%clk 0:00:25]}  Kg7 {[%clk 0:00:08]} 65. g5 {[%clk 0:00:26]}  Qe7 {[%clk 0:00:04]} 66. Kg4 {[%clk 0:00:25]}  Qd6 {[%clk 0:00:04]} 67. Kh5 {[%clk 0:00:24]}  Qe7 {[%clk 0:00:04]} 68. Qf6+ {[%clk 0:00:12]}  Qxf6 {[%clk 0:00:03]} 69. gxf6+ {[%clk 0:00:13]}  Kxf6 {[%clk 0:00:04]} 70. Kh6 {[%clk 0:00:14]}  Ke6 {[%clk 0:00:05]} 71. Kg6 {[%clk 0:00:14]}  Kd6 {[%clk 0:00:06]} 72. Kf6 {[%clk 0:00:14]}  c5 {[%clk 0:00:07]} 73. bxc5+ {[%clk 0:00:15]}  Kxc5 {[%clk 0:00:08]} 74. Kxe5 {[%clk 0:00:14]}  Kc4 {[%clk 0:00:08]} 75. f4 {[%clk 0:00:15]}  Kb3 {[%clk 0:00:09]} 76. f5 {[%clk 0:00:15]}  Kxa3 {[%clk 0:00:10]} 77. f6 {[%clk 0:00:16]}  b4 {[%clk 0:00:11]} 78. f7 {[%clk 0:00:16]}  b3 {[%clk 0:00:12]} 79. f8=Q+ {[%clk 0:00:16]}  Ka2 {[%clk 0:00:12]} 80. Qa8+ {[%clk 0:00:16]}  Kb1 {[%clk 0:00:11]} 81. Kd4 {[%clk 0:00:17]}  b2 {[%clk 0:00:12]} 82. Qb8 {[%clk 0:00:16]}  Kc1 {[%clk 0:00:13]} 83. Qxb2+ {[%clk 0:00:16]}  Kxb2 {[%clk 0:00:13]} 84. e5 {[%clk 0:00:16]} 1-0


[Site "https://www.chess.com"]

[Event "Titled Tuesday Blitz October 11 Early 2022"]
[White "Papasimakopoulos, Alexandros"]
[Black "Shkuran, Danylo"]
[WhiteFideId "4244125"]
[BlackFideId "14106248"]
[WhiteElo "2357"]
[BlackElo "2427"]
[Result "1-0"]
[Round "05"]
[TimeControl "180+1"]
[Date "2022.10.12"]
[WhiteClock "0:00:19"]
[BlackClock "0:00:01"]

1. d4 {[%clk 0:03:00]}  d5 {[%clk 0:02:59]} 2. c4 {[%clk 0:03:00]}  c6 {[%clk 0:02:59]} 3. cxd5 {[%clk 0:02:52]}  cxd5 {[%clk 0:02:58]} 4. Bf4 {[%clk 0:02:53]}  Nc6 {[%clk 0:02:58]} 5. e3 {[%clk 0:02:53]}  Qb6 {[%clk 0:02:57]} 6. Qd2 {[%clk 0:02:49]}  Bf5 {[%clk 0:02:54]} 7. Nc3 {[%clk 0:02:49]}  e6 {[%clk 0:02:50]} 8. f3 {[%clk 0:02:49]}  h6 {[%clk 0:02:46]} 9. g4 {[%clk 0:02:48]}  Bh7 {[%clk 0:02:46]} 10. Rc1 {[%clk 0:02:48]}  Nf6 {[%clk 0:02:33]} 11. h4 {[%clk 0:02:44]}  Be7 {[%clk 0:02:21]} 12. g5 {[%clk 0:02:43]}  Nh5 {[%clk 0:02:19]} 13. Nge2 {[%clk 0:02:35]}  Nxf4 {[%clk 0:02:14]} 14. Nxf4 {[%clk 0:02:33]}  Kd7 {[%clk 0:01:47]} 15. gxh6 {[%clk 0:02:23]}  gxh6 {[%clk 0:01:48]} 16. Bd3 {[%clk 0:02:06]}  Rag8 {[%clk 0:01:42]} 17. Kd1 {[%clk 0:02:01]}  Bd6 {[%clk 0:01:29]} 18. Nce2 {[%clk 0:01:41]}  Nb4 {[%clk 0:01:14]} 19. Bxh7 {[%clk 0:01:37]}  Rxh7 {[%clk 0:01:15]} 20. a3 {[%clk 0:01:34]}  Nc6 {[%clk 0:01:02]} 21. Kc2 {[%clk 0:01:32]}  Na5 {[%clk 0:00:56]} 22. Qd3 {[%clk 0:01:16]}  Rhg7 {[%clk 0:00:54]} 23. Kb1 {[%clk 0:01:16]}  Nc4 {[%clk 0:00:53]} 24. Rxc4 {[%clk 0:01:06]}  dxc4 {[%clk 0:00:51]} 25. Qxc4 {[%clk 0:01:06]}  Rc8 {[%clk 0:00:45]} 26. Qa4+ {[%clk 0:01:06]}  Qc6 {[%clk 0:00:42]} 27. Qxa7 {[%clk 0:00:47]}  Qxf3 {[%clk 0:00:29]} 28. Re1 {[%clk 0:00:36]}  Qxe3 {[%clk 0:00:14]} 29. Qxb7+ {[%clk 0:00:36]}  Rc7 {[%clk 0:00:14]} 30. Qb5+ {[%clk 0:00:33]}  Ke7 {[%clk 0:00:14]} 31. Qa5 {[%clk 0:00:27]}  Qe4+ {[%clk 0:00:13]} 32. Ka1 {[%clk 0:00:25]}  Qc6 {[%clk 0:00:11]} 33. d5 {[%clk 0:00:20]}  Qc5 {[%clk 0:00:08]} 34. Qd2 {[%clk 0:00:19]}  e5 {[%clk 0:00:07]} 35. Nc3 {[%clk 0:00:18]}  Kd7 {[%clk 0:00:05]} 36. Nh5 {[%clk 0:00:18]}  Rg8 {[%clk 0:00:03]} 37. Nf6+ {[%clk 0:00:18]}  Ke7 {[%clk 0:00:02]} 38. Nxg8+ {[%clk 0:00:18]}  Kf8 {[%clk 0:00:01]} 39. Qxh6+ {[%clk 0:00:19]} 1-0


[Site "https://www.chess.com"]

[Event "Titled Tuesday Blitz October 11 Early 2022"]
[White "Podetti, Davide"]
[Black "Korchmar, Vasiliy"]
[WhiteFideId "893617"]
[BlackFideId "24131750"]
[WhiteElo "2160"]
[BlackElo "2370"]
[Result "1-0"]
[Round "05"]
[TimeControl "180+1"]
[Date "2022.10.12"]
[WhiteClock "0:00:46"]
[BlackClock "0:00:03"]

1. e4 {[%clk 0:02:58]}  c5 {[%clk 0:02:59]} 2. Nf3 {[%clk 0:02:58]}  d6 {[%clk 0:03:00]} 3. Bb5+ {[%clk 0:02:58]}  Nd7 {[%clk 0:03:00]} 4. d4 {[%clk 0:02:59]}  cxd4 {[%clk 0:03:00]} 5. Qxd4 {[%clk 0:03:00]}  a6 {[%clk 0:02:59]} 6. Bxd7+ {[%clk 0:03:00]}  Bxd7 {[%clk 0:03:00]} 7. c4 {[%clk 0:03:00]}  e5 {[%clk 0:02:56]} 8. Qd3 {[%clk 0:03:00]}  Rc8 {[%clk 0:02:55]} 9. Nc3 {[%clk 0:03:00]}  h6 {[%clk 0:02:48]} 10. O-O {[%clk 0:02:59]}  Nf6 {[%clk 0:02:48]} 11. Rd1 {[%clk 0:02:57]}  Be7 {[%clk 0:02:48]} 12. Nd2 {[%clk 0:02:57]}  Qc7 {[%clk 0:02:36]} 13. a4 {[%clk 0:02:53]}  O-O {[%clk 0:02:28]} 14. b3 {[%clk 0:02:48]}  Be6 {[%clk 0:02:16]} 15. Ba3 {[%clk 0:02:44]}  Rfd8 {[%clk 0:01:59]} 16. Nf1 {[%clk 0:02:43]}  Qb6 {[%clk 0:01:49]} 17. Qc2 {[%clk 0:02:31]}  Bf8 {[%clk 0:01:32]} 18. Ne3 {[%clk 0:02:31]}  h5 {[%clk 0:01:25]} 19. Ned5 {[%clk 0:02:27]}  Nxd5 {[%clk 0:01:18]} 20. Nxd5 {[%clk 0:02:28]}  Bxd5 {[%clk 0:01:17]} 21. Rxd5 {[%clk 0:02:29]}  g6 {[%clk 0:01:13]} 22. Rad1 {[%clk 0:02:28]}  Rc6 {[%clk 0:01:07]} 23. Qd3 {[%clk 0:02:19]}  Be7 {[%clk 0:01:05]} 24. c5 {[%clk 0:02:09]}  Qa7 {[%clk 0:00:44]} 25. cxd6 {[%clk 0:02:07]}  Bf8 {[%clk 0:00:45]} 26. Rxe5 {[%clk 0:01:21]}  Bxd6 {[%clk 0:00:34]} 27. Rd5 {[%clk 0:01:19]}  Bxa3 {[%clk 0:00:18]} 28. Rxd8+ {[%clk 0:01:18]}  Kh7 {[%clk 0:00:19]} 29. Qd4 {[%clk 0:01:06]}  Qxd4 {[%clk 0:00:18]} 30. R8xd4 {[%clk 0:01:06]}  Rc3 {[%clk 0:00:17]} 31. R4d3 {[%clk 0:01:06]}  Rc2 {[%clk 0:00:17]} 32. g3 {[%clk 0:01:03]}  Kg7 {[%clk 0:00:10]} 33. R1d2 {[%clk 0:01:02]}  Rc1+ {[%clk 0:00:09]} 34. Kg2 {[%clk 0:01:02]}  Bb4 {[%clk 0:00:09]} 35. Re2 {[%clk 0:01:01]}  Rb1 {[%clk 0:00:09]} 36. e5 {[%clk 0:01:01]}  h4 {[%clk 0:00:04]} 37. gxh4 {[%clk 0:00:59]}  Kh6 {[%clk 0:00:02]} 38. e6 {[%clk 0:00:56]}  fxe6 {[%clk 0:00:03]} 39. Rxe6 {[%clk 0:00:57]}  Rb2 {[%clk 0:00:04]} 40. Rg3 {[%clk 0:00:55]}  Bc5 {[%clk 0:00:02]} 41. Rexg6+ {[%clk 0:00:53]}  Kh7 {[%clk 0:00:03]} 42. R6g5 {[%clk 0:00:47]}  b6 {[%clk 0:00:03]} 43. Rh5# {[%clk 0:00:46]} 1-0


[Site "https://www.chess.com"]

[Event "Titled Tuesday Blitz October 11 Early 2022"]
[White "Przybylski, Wojciech"]
[Black "Janaszak, Dawid"]
[WhiteFideId "1117599"]
[BlackFideId "1119206"]
[WhiteElo "2221"]
[BlackElo "2226"]
[Result "0-1"]
[Round "05"]
[TimeControl "180+1"]
[Date "2022.10.12"]
[WhiteClock "0:00:01"]
[BlackClock "0:00:31"]

1. e4 {[%clk 0:03:00]}  c6 {[%clk 0:02:59]} 2. d4 {[%clk 0:02:57]}  d5 {[%clk 0:03:00]} 3. e5 {[%clk 0:02:57]}  Bf5 {[%clk 0:02:53]} 4. Be3 {[%clk 0:02:56]}  e6 {[%clk 0:02:52]} 5. Be2 {[%clk 0:02:54]}  Nd7 {[%clk 0:02:48]} 6. Nd2 {[%clk 0:02:50]}  c5 {[%clk 0:02:46]} 7. c3 {[%clk 0:02:49]}  Ne7 {[%clk 0:02:41]} 8. f4 {[%clk 0:02:44]}  Nc6 {[%clk 0:02:32]} 9. a3 {[%clk 0:02:42]}  cxd4 {[%clk 0:02:18]} 10. cxd4 {[%clk 0:02:40]}  Be7 {[%clk 0:02:17]} 11. Ngf3 {[%clk 0:02:40]}  O-O {[%clk 0:02:17]} 12. O-O {[%clk 0:02:38]}  Rc8 {[%clk 0:02:15]} 13. Rc1 {[%clk 0:02:37]}  Qb6 {[%clk 0:02:12]} 14. Qb3 {[%clk 0:02:34]}  Qxb3 {[%clk 0:02:04]} 15. Nxb3 {[%clk 0:02:33]}  Nb6 {[%clk 0:02:03]} 16. Nc5 {[%clk 0:02:24]}  Bxc5 {[%clk 0:01:52]} 17. dxc5 {[%clk 0:02:23]}  Nc4 {[%clk 0:01:50]} 18. Bxc4 {[%clk 0:01:47]}  dxc4 {[%clk 0:01:51]} 19. Rfd1 {[%clk 0:01:41]}  Bd3 {[%clk 0:01:45]} 20. b4 {[%clk 0:01:18]}  Rfd8 {[%clk 0:01:39]} 21. Kf2 {[%clk 0:01:05]}  Rd5 {[%clk 0:01:30]} 22. Nd2 {[%clk 0:01:03]}  a5 {[%clk 0:00:59]} 23. b5 {[%clk 0:01:00]}  Ne7 {[%clk 0:00:59]} 24. a4 {[%clk 0:00:51]}  Nf5 {[%clk 0:00:59]} 25. Re1 {[%clk 0:00:49]}  Nxe3 {[%clk 0:00:57]} 26. Kxe3 {[%clk 0:00:46]}  Rdxc5 {[%clk 0:00:57]} 27. Rc3 {[%clk 0:00:36]}  b6 {[%clk 0:00:54]} 28. Rec1 {[%clk 0:00:34]}  f6 {[%clk 0:00:51]} 29. Nf3 {[%clk 0:00:32]}  Kf7 {[%clk 0:00:48]} 30. exf6 {[%clk 0:00:29]}  gxf6 {[%clk 0:00:49]} 31. Nd4 {[%clk 0:00:23]}  Rg8 {[%clk 0:00:49]} 32. g3 {[%clk 0:00:23]}  e5 {[%clk 0:00:47]} 33. Nc6 {[%clk 0:00:22]}  exf4+ {[%clk 0:00:46]} 34. Kxf4 {[%clk 0:00:22]}  Rf5+ {[%clk 0:00:43]} 35. Ke3 {[%clk 0:00:20]}  Re8+ {[%clk 0:00:43]} 36. Ne5+ {[%clk 0:00:06]}  Rfxe5+ {[%clk 0:00:39]} 37. Kf3 {[%clk 0:00:05]}  Rf5+ {[%clk 0:00:38]} 38. Kg2 {[%clk 0:00:04]}  Re2+ {[%clk 0:00:37]} 39. Kh3 {[%clk 0:00:04]}  Rh5+ {[%clk 0:00:34]} 40. Kg4 {[%clk 0:00:04]}  Rhxh2 {[%clk 0:00:33]} 41. Rd1 {[%clk 0:00:01]}  Kg6 {[%clk 0:00:31]} 42. Kf3 {[%clk 0:00:01]}  Rhf2+ {[%clk 0:00:30]} 43. Kg4 {[%clk 0:00:01]}  f5+ {[%clk 0:00:30]} 44. Kh3 {[%clk 0:00:01]}  Rh2# {[%clk 0:00:31]} 0-1


[Site "https://www.chess.com"]

[Event "Titled Tuesday Blitz October 11 Early 2022"]
[White "Reprintsev, Alexander"]
[Black "Zhao, Jun"]
[WhiteFideId "14100541"]
[BlackFideId "8602522"]
[WhiteElo "2230"]
[BlackElo "2547"]
[Result "0-1"]
[Round "05"]
[TimeControl "180+1"]
[Date "2022.10.12"]
[WhiteClock "0:00:24"]
[BlackClock "0:02:13"]

1. e4 {[%clk 0:02:51]}  e6 {[%clk 0:02:58]} 2. d4 {[%clk 0:02:50]}  d5 {[%clk 0:02:58]} 3. Nc3 {[%clk 0:02:50]}  Nf6 {[%clk 0:02:58]} 4. Bg5 {[%clk 0:02:49]}  Bb4 {[%clk 0:02:56]} 5. e5 {[%clk 0:02:42]}  h6 {[%clk 0:02:56]} 6. exf6 {[%clk 0:02:42]}  hxg5 {[%clk 0:02:55]} 7. fxg7 {[%clk 0:02:42]}  Rg8 {[%clk 0:02:55]} 8. Qh5 {[%clk 0:02:38]}  Qf6 {[%clk 0:02:44]} 9. h4 {[%clk 0:02:36]}  Qxd4 {[%clk 0:02:40]} 10. Ne2 {[%clk 0:02:13]}  Qxg7 {[%clk 0:02:40]} 11. O-O-O {[%clk 0:02:10]}  Bd7 {[%clk 0:02:23]} 12. a3 {[%clk 0:01:47]}  Be7 {[%clk 0:02:18]} 13. Nd4 {[%clk 0:01:43]}  Nc6 {[%clk 0:02:15]} 14. Nxc6 {[%clk 0:01:25]}  Bxc6 {[%clk 0:02:15]} 15. Bb5 {[%clk 0:01:21]}  gxh4 {[%clk 0:02:14]} 16. Bxc6+ {[%clk 0:01:19]}  bxc6 {[%clk 0:02:14]} 17. Qe2 {[%clk 0:00:24]}  Rb8 {[%clk 0:02:13]} 0-1


[Site "https://www.chess.com"]